lending/lending_fUSD_20260306
["ID","MTS","AMOUNT","RATE_DAILY","PERIOD"]
[407854110,1772836257140,-777.38,0.0004376,30]
[407854111,1772836257149,-551.48510475,0.0004376,30]
[407854112,1772836257158,-1000.0,0.000438,30]
[407854113,1772836257167,-546.06874641,0.000438,120]
[407854114,1772836257176,-50000.0,0.000438,120]
[407854115,1772836257185,-1591.8,0.00043808,120]
[407854116,1772836257194,-971.17999609,0.00043808,120]
[407854117,1772836257202,-500.0,0.00043834,120]
[407854118,1772836257212,-500.0,0.00043834,120]
[407854119,1772836257221,-500.0,0.00043834,2]
[407854120,1772836257230,-500.0,0.00043834,120]
[407854121,1772836257239,-500.0,0.00043834,120]
[407854122,1772836257248,-500.0,0.00043834,2]
[407854123,1772836257258,-500.0,0.00043834,30]
[407854124,1772836257266,-500.0,0.00043834,45]
[407854125,1772836257275,-500.0,0.00043834,120]
[407854126,1772836257284,-500.0,0.00043834,120]
[407854127,1772836257293,-500.0,0.00043835,120]
[407854128,1772836257302,-500.0,0.00043835,120]
[407854129,1772836257312,-500.9565902,0.00043835,120]
[407854130,1772836257321,-500.0,0.00043835,120]
[407854131,1772836257330,-1000.0,0.00043835,2]
[407854132,1772836257339,-280.0891672,0.00043835,2]
[407854133,1772836257348,-500.0,0.00043835,2]
[407854134,1772836257357,-500.0,0.00043835,2]
[407854135,1772836257367,-500.0,0.00043835,2]
[407854136,1772836257376,-500.0,0.00043835,2]
[407854137,1772836257385,-500.0,0.00043835,2]
[407854138,1772836257394,-500.0,0.00043835,2]
[407854139,1772836257403,-500.0,0.00043835,2]
[407854140,1772836257412,-500.0,0.00043835,2]
[407854141,1772836257421,-613.83938841,0.00043835,2]
[407854142,1772836257430,-515.82300736,0.00043835,120]
[407854143,1772836257439,-1258.44,0.00043835,2]
[407854144,1772836257449,-1258.44,0.00043835,2]
[407854145,1772836257458,-1258.44,0.00043835,2]
[407854146,1772836257467,-1258.44,0.00043835,2]
[407854147,1772836257476,-1258.44,0.00043835,2]
[407854148,1772836257486,-1258.44,0.00043835,2]
[407854149,1772836257495,-1258.44,0.00043835,2]
[407854150,1772836257505,-1258.44,0.00043835,2]
[407854151,1772836257514,-1258.44,0.00043835,2]
[407854152,1772836257523,-1258.44,0.00043835,2]
[407854153,1772836257533,-1258.44,0.00043835,2]
[407854154,1772836257542,-1258.44,0.00043835,2]
[407854155,1772836257551,-1258.44,0.00043835,2]
[407854156,1772836257561,-1258.44,0.00043835,2]
[407854157,1772836257572,-1258.44,0.00043835,2]
[407854158,1772836257581,-1258.44,0.00043835,2]
[407854159,1772836257591,-1258.44,0.00043835,2]
[407854160,1772836257600,-1258.44,0.00043835,2]
[407854161,1772836257609,-1258.44,0.00043835,2]
[407854162,1772836257618,-1258.44,0.00043835,2]
[407854163,1772836257627,-1258.44,0.00043835,2]
[407854164,1772836257636,-1258.44,0.00043835,2]
[407854165,1772836257645,-1258.44,0.00043835,2]
[407854166,1772836257654,-1258.58423451,0.00043835,2]
[407854167,1772836257663,-7164.15159025,0.00043835,5]
[407854168,1772836257675,-25000.0,0.00043835,15]
[407854169,1772836257685,-500.0,0.00043835,120]
[407854170,1772836257695,-500.0,0.00043835,120]
[407854171,1772836257704,-500.0,0.00043835,120]
[407854172,1772836257715,-500.0,0.00043835,120]
[407854173,1772836257725,-500.0,0.00043835,120]
[407854174,1772836257734,-500.0,0.00043835,120]
[407854175,1772836257745,-500.0,0.00043835,120]
[407854176,1772836257755,-500.0,0.00043835,120]
[407854177,1772836257765,-500.0,0.00043835,120]
[407854178,1772836257775,-501.65490111,0.00043835,120]
[407854179,1772836257784,-427.13,0.00043835,2]
[407854180,1772836257794,-427.13,0.00043835,2]
[407854181,1772836257804,-427.13,0.00043835,2]
[407854182,1772836257814,-427.13,0.00043835,2]
[407854183,1772836257824,-427.13,0.00043835,2]
[407854184,1772836257833,-427.13,0.00043835,2]
[407854185,1772836257842,-427.13,0.00043835,2]
[407854186,1772836257852,-427.13,0.00043835,2]
[407854187,1772836257862,-427.13,0.00043835,2]
[407854188,1772836257871,-427.13,0.00043835,2]
[407854189,1772836257881,-427.13,0.00043835,2]
[407854190,1772836257891,-427.13,0.00043835,2]
[407854191,1772836257900,-427.13,0.00043835,2]
[407854192,1772836257910,-427.13,0.00043835,2]
[407854193,1772836257920,-427.13,0.00043835,2]
[407854194,1772836257930,-427.13,0.00043835,2]
[407854195,1772836257939,-427.13,0.00043835,2]
[407854196,1772836257949,-427.13,0.00043835,2]
[407854197,1772836257959,-427.13,0.00043835,2]
[407854198,1772836257969,-427.13,0.00043835,2]
[407854199,1772836257978,-427.13,0.00043835,2]
[407854200,1772836257988,-427.13,0.00043835,2]
[407854201,1772836257997,-427.13,0.00043835,2]
[407854202,1772836258007,-427.24393686,0.00043835,2]
[407854203,1772836258016,-500.0,0.00043835,120]
[407854204,1772836258026,-1372.01,0.00043835,2]
[407854205,1772836258035,-1372.01,0.00043835,2]
[407854206,1772836258046,-1372.01,0.00043835,2]
[407854207,1772836258055,-1372.01,0.00043835,2]
[407854208,1772836258065,-1372.01,0.00043835,2]
[407854209,1772836258074,-1372.01,0.00043835,2]
[407854210,1772836258083,-1372.01,0.00043835,2]
[407854211,1772836258093,-1372.01,0.00043835,2]
[407854212,1772836258103,-1372.01,0.00043835,2]
[407854213,1772836258113,-1372.01,0.00043835,2]
[407854214,1772836258123,-1372.01,0.00043835,2]
[407854215,1772836258133,-1372.01,0.00043835,2]
[407854216,1772836258142,-1372.01,0.00043835,2]
[407854217,1772836258152,-1372.01,0.00043835,2]
[407854218,1772836258162,-1372.01,0.00043835,2]
[407854219,1772836258171,-1372.01,0.00043835,2]
[407854220,1772836258181,-1372.01,0.00043835,2]
[407854221,1772836258191,-1372.01,0.00043835,2]
[407854222,1772836258200,-1372.01,0.00043835,2]
[407854223,1772836258210,-1372.01,0.00043835,2]
[407854224,1772836258220,-1372.01,0.00043835,2]
[407854225,1772836258230,-1372.01,0.00043835,2]
[407854226,1772836258239,-1372.01,0.00043835,2]
[407854227,1772836258249,-1372.22091294,0.00043835,2]
[407854228,1772836258259,-500.0,0.00043835,2]
[407854229,1772836258268,-738.84,0.00043835,120]
[407854230,1772836258278,-300.0,0.00043835,2]
[407854231,1772836258287,-1999.0,0.00043835,120]
[407854232,1772836258297,-1936.02,0.00043835,120]
[407854233,1772836258307,-11884.25,0.00043835,120]
[407854234,1772836258316,-1211.82,0.00043835,120]
[407854235,1772836258327,-915.96,0.00043835,120]
[407854236,1772836258337,-685.55,0.00043835,120]
[407854237,1772836258347,-687.88,0.00043835,2]
[407854238,1772836258357,-788.78,0.00043835,2]
[407854239,1772836258368,-894.69,0.00043835,120]
[407854240,1772836258378,-746.0,0.00043836,120]
[407854241,1772836258389,-1000.0,0.00043836,60]
[407854242,1772836258399,-1000.0,0.00043836,60]
[407854243,1772836258408,-1000.0,0.00043836,60]
[407854244,1772836258419,-1000.0,0.00043836,60]
[407854245,1772836258429,-1000.0,0.00043836,60]
[407854246,1772836258439,-1000.0,0.00043836,60]
[407854247,1772836258450,-1000.0,0.00043836,60]
[407854248,1772836258460,-1000.0,0.00043836,60]
[407854249,1772836258471,-1000.0,0.00043836,60]
[407854250,1772836258482,-1000.0,0.00043836,60]
[407854251,1772836258492,-1000.0,0.00043836,60]
[407854252,1772836258503,-1000.0,0.00043836,60]
[407854253,1772836258515,-1000.0,0.00043836,60]
[407854254,1772836258524,-1000.0,0.00043836,60]
[407854255,1772836258535,-1000.0,0.00043836,60]
[407854256,1772836258545,-1000.0,0.00043836,60]
[407854257,1772836258555,-1000.0,0.00043836,60]
[407854258,1772836258564,-1000.0,0.00043836,60]
[407854259,1772836258575,-1000.0,0.00043836,60]
[407854260,1772836258585,-1000.0,0.00043836,60]
[407854261,1772836258594,-1000.0,0.00043836,60]
[407854262,1772836258603,-1000.0,0.00043836,60]
[407854263,1772836258613,-1000.0,0.00043836,60]
[407854264,1772836258623,-1000.0,0.00043836,60]
[407854265,1772836258632,-1000.0,0.00043836,60]
[407854266,1772836258641,-1000.0,0.00043836,60]
[407854267,1772836258651,-1000.0,0.00043836,60]
[407854268,1772836258660,-1000.0,0.00043836,60]
[407854269,1772836258670,-1000.0,0.00043836,60]
[407854270,1772836258684,-1000.0,0.00043836,60]
[407854271,1772836258694,-1000.0,0.00043836,60]
[407854272,1772836258703,-1000.0,0.00043836,60]
[407854273,1772836258713,-1000.0,0.00043836,60]
[407854274,1772836258723,-1000.0,0.00043836,60]
[407854275,1772836258733,-1000.0,0.00043836,60]
[407854276,1772836258744,-1000.0,0.00043836,60]
[407854277,1772836258754,-1000.0,0.00043836,60]
[407854278,1772836258763,-1000.0,0.00043836,60]
[407854279,1772836258773,-1000.0,0.00043836,60]
[407854280,1772836258783,-1000.0,0.00043836,60]
[407854281,1772836258793,-1000.0,0.00043836,60]
[407854282,1772836258803,-1000.0,0.00043836,60]
[407854283,1772836258813,-1000.0,0.00043836,60]
[407854284,1772836258822,-1000.0,0.00043836,60]
[407854285,1772836258832,-1000.0,0.00043836,60]
[407854286,1772836258841,-1000.0,0.00043836,60]
[407854287,1772836258850,-1000.0,0.00043836,60]
[407854288,1772836258860,-1000.0,0.00043836,60]
[407854289,1772836258870,-1000.0,0.00043836,60]
[407854290,1772836258879,-1000.0,0.00043836,60]
[407854291,1772836258889,-1000.0,0.00043836,60]
[407854292,1772836258899,-1000.0,0.00043836,60]
[407854293,1772836258909,-1000.0,0.00043836,60]
[407854294,1772836258919,-1000.0,0.00043836,60]
[407854295,1772836258929,-1000.0,0.00043836,60]
[407854296,1772836258939,-1000.0,0.00043836,60]
[407854297,1772836258948,-1000.0,0.00043836,60]
[407854298,1772836258959,-1000.0,0.00043836,60]
[407854299,1772836258968,-1000.0,0.00043836,60]
[407854300,1772836258978,-1000.0,0.00043836,60]
[407854301,1772836258988,-1000.0,0.00043836,60]
[407854302,1772836258997,-1000.0,0.00043836,60]
[407854303,1772836259007,-1000.0,0.00043836,60]
[407854304,1772836259016,-1228.0,0.00043836,60]
[407854305,1772836259026,-800.0,0.00043836,32]
[407854306,1772836259035,-800.0,0.00043836,32]
[407854307,1772836259046,-164.83157446,0.00043836,5]
[407854308,1772836259055,-20000.0,0.00043836,120]
[407854309,1772836259065,-152.0,0.00043882,6]
[407854310,1772836259075,-980.39,0.0004389,7]
[407854311,1772836259085,-507.3626941,0.000439,120]
[407854312,1772836259095,-174.52022365,0.000439,120]
[407854313,1772836259105,-208.04415912,0.000439,120]
[407854314,1772836259114,-50000.0,0.000439,60]
[407854315,1772836259124,-156.4697347,0.00043947,2]
[407854316,1772836259134,-1096.79723223,0.00043987,120]
[407854317,1772836259144,-1652.91405644,0.00044,2]
[407854318,1772836259154,-50784.90330786,0.00044,2]
[407854319,1772836259164,-423.50483209,0.00044,120]
[407854320,1772836259174,-1408.38119958,0.00044,120]
[407854321,1772836259184,-1230.58880999,0.00044,120]
[407854322,1772836259194,-246.94252637,0.00044,120]
[407854323,1772836259204,-654.37008131,0.00044,2]
[407854324,1772836259213,-5879.16840946,0.00044,30]
[407854325,1772836259223,-10000.0,0.00044,45]
[407854326,1772836259233,-923.0,0.00044,5]
[407854327,1772836259242,-152.0,0.00044,120]
[407854328,1772836259252,-563.075186,0.00044,57]
[407854329,1772836259262,-154.0,0.00044,120]
[407854330,1772836259272,-151.0,0.00044,120]
[407854331,1772836259282,-185.0,0.00044,90]
[407854332,1772836259292,-298.0,0.00044,120]
[407854333,1772836259302,-1042.7,0.00044013,120]
[407854334,1772836259312,-354.03692593,0.00044082,120]
[407854335,1772836259322,-500.0,0.00044099,120]
[407854336,1772836259332,-500.0,0.00044099,120]
[407854337,1772836259342,-500.0,0.00044099,2]
[407854338,1772836259351,-500.0,0.00044099,30]
[407854339,1772836259361,-500.0,0.00044099,45]
[407854340,1772836259371,-500.0,0.00044099,120]
[407854341,1772836259381,-500.0,0.00044099,120]
[407854342,1772836259391,-81496.89796596,0.000441,2]
[407854343,1772836259400,-200.0,0.000441,120]
[407854344,1772836259409,-200.0,0.000441,120]
[407854345,1772836259419,-200.0,0.000441,120]
[407854346,1772836259428,-200.0,0.000441,120]
[407854347,1772836259438,-500.0,0.00044109,2]
[407854348,1772836259447,-738.84,0.00044109,120]
[407854349,1772836259456,-300.0,0.00044109,2]
[407854350,1772836259466,-1936.02,0.00044109,120]
[407854351,1772836259475,-11884.25,0.00044109,120]
[407854352,1772836259484,-1211.82,0.00044109,120]
[407854353,1772836259494,-915.96,0.00044109,120]
[407854354,1772836259504,-685.55,0.00044109,120]
[407854355,1772836259513,-687.88,0.00044109,2]
[407854356,1772836259523,-788.78,0.00044109,2]
[407854357,1772836259532,-894.69,0.00044109,120]
[407854358,1772836259542,-746.0,0.0004411,120]
[407854359,1772836259551,-185.0,0.0004411,90]
[407854360,1772836259562,-418.82,0.00044187,120]
[407854361,1772836259571,-13407.19478314,0.000442,7]
[407854362,1772836259581,-156.4697347,0.00044221,2]
[407854363,1772836259591,-500.0,0.00044246,120]
[407854364,1772836259601,-150.0,0.00044281,120]
[407854365,1772836259611,-171.46,0.00044301,13]
[407854366,1772836259620,-171.46,0.00044301,13]
[407854367,1772836259804,-171.46,0.00044301,13]
[407854368,1772836259814,-171.48,0.00044301,13]
[407854369,1772836259824,-177.13,0.00044301,13]
[407854370,1772836259833,-177.13,0.00044301,13]
[407854371,1772836259843,-503.0,0.00044332,28]
[407854372,1772836259852,-500.0,0.00044361,2]
[407854373,1772836259861,-500.0,0.00044383,2]
[407854374,1772836259870,-738.84,0.00044383,120]
[407854375,1772836259880,-300.0,0.00044383,2]
[407854376,1772836259890,-1936.02,0.00044383,120]
[407854377,1772836259899,-11884.25,0.00044383,120]
[407854378,1772836259909,-1211.82,0.00044383,120]
[407854379,1772836259918,-915.96,0.00044383,120]
[407854380,1772836259928,-685.55,0.00044383,120]
[407854381,1772836259937,-687.88,0.00044383,2]
[407854382,1772836259946,-788.78,0.00044383,2]
[407854383,1772836259956,-894.69,0.00044383,120]
[407854384,1772836259965,-746.0,0.00044384,120]
[407854385,1772836259974,-150.0,0.000444,74]
[407854386,1772836259984,-6422.4481489,0.0004444,120]
[407854387,1772836259993,-7623.83569616,0.0004444,2]
[407854388,1772836260200,-589.89471263,0.0004444,2]
[407854389,1772836260212,-13390.316375,0.0004444,2]
[407854390,1772836260277,-10047.29431854,0.0004444,2]
[407854391,1772836260397,-799.48481584,0.00013128,2]
[407854392,1772836260412,-2.20915925,0.00013128,2]
[407854393,1772836260421,-150.0,0.00021918,2]
[407854394,1772836260431,-1341.0,0.00032469,2]
[407854395,1772836260440,-1341.0,0.00035469,2]
[407854396,1772836260449,-1341.0,0.00038469,2]
[407854397,1772836260459,-500.0,0.00039726,60]
[407854398,1772836260468,-500.0,0.00039726,60]
[407854399,1772836260477,-1035.164431,0.00041096,120]
[407854400,1772836260486,-670.01859607,0.00041469,2]
[407854401,1772836260498,-670.98140393,0.00041469,2]
[407854402,1772836260507,-694.95859607,0.000423,120]
[407854403,1772836260518,-340.20583493,0.000423,120]
[407854404,1772836260527,-4004.64589142,0.0004444,2]
[407854405,1772836260543,-443.4506406,0.00016891,2]
[407854406,1772836260704,-181.44006206,0.00016891,2]
[407854407,1772836260721,-10983.85587717,0.00016891,2]
[407854408,1772836260730,-82086.01300625,0.0004444,2]
[407854409,1772836260740,-418.82,0.00044461,120]
[407854410,1772836260751,-922.0,0.00044469,2]
[407854411,1772836260760,-1212.0,0.00044469,2]
[407854412,1772836260770,-619.0,0.00044469,2]
[407854413,1772836260778,-1341.0,0.00044469,2]
[407854414,1772836260788,-10594.32785294,0.00044475,120]
[407854415,1772836260797,-151.53,0.00044476,120]
[407854416,1772836260806,-151.51,0.00044476,120]
[407854417,1772836260815,-151.43,0.00044476,120]
[407854418,1772836260824,-156.4697347,0.00044495,2]
[407854419,1772836260834,-179.69164595,0.000445,120]
[407854420,1772836260843,-298.0,0.000445,120]
[407854421,1772836260852,-1742.63792624,0.00044543,84]
[407854422,1772836260861,-151.53,0.00044576,120]
[407854423,1772836260870,-151.51,0.00044576,120]
[407854424,1772836260879,-151.43,0.00044576,120]
[407854425,1772836260889,-350.0,0.00044656,2]
[407854426,1772836260898,-500.0,0.00044657,120]
[407854427,1772836260907,-500.0,0.00044657,2]
[407854428,1772836260916,-738.84,0.00044657,120]
[407854429,1772836260925,-416.3906395,0.00044657,2]
[407854430,1772836260935,-689.2245228,0.00044657,120]
[407854431,1772836260944,-1936.02,0.00044657,120]
[407854432,1772836260953,-11884.25,0.00044657,120]
[407854433,1772836260962,-151.0,0.00044657,120]
[407854434,1772836260971,-151.0,0.00044657,120]
[407854435,1772836260980,-270.073588,0.00044657,120]
[407854436,1772836260989,-247.042845,0.00044657,120]
[407854437,1772836260998,-151.0,0.00044657,120]
[407854438,1772836261007,-151.0,0.00044657,120]
[407854439,1772836261016,-151.0,0.00044657,120]
[407854440,1772836261025,-151.0,0.00044657,120]
[407854441,1772836261035,-31833.9151,0.00044657,120]
[407854442,1772836261044,-203.661833,0.00044657,120]
[407854443,1772836261054,-203.661833,0.00044657,120]
[407854444,1772836261063,-31833.9151,0.00044657,120]
[407854445,1772836261072,-480.465724,0.00044657,14]
[407854446,1772836261082,-203.661833,0.00044657,120]
[407854447,1772836261092,-31833.9151,0.00044657,120]
[407854448,1772836261102,-480.465724,0.00044657,14]
[407854449,1772836261113,-31833.9151,0.00044657,120]
[407854450,1772836261123,-203.661833,0.00044657,120]
[407854451,1772836261133,-151.0,0.00044657,120]
[407854452,1772836261143,-480.465724,0.00044657,14]
[407854453,1772836261153,-492.055808,0.00044657,120]
[407854454,1772836261162,-151.0,0.00044657,120]
[407854455,1772836261172,-480.465724,0.00044657,14]
[407854456,1772836261182,-492.055808,0.00044657,120]
[407854457,1772836261192,-420.104859,0.00044657,2]
[407854458,1772836261202,-492.055808,0.00044657,120]
[407854459,1772836261212,-420.104859,0.00044657,2]
[407854460,1772836261222,-492.055808,0.00044657,120]
[407854461,1772836261232,-420.104859,0.00044657,2]
[407854462,1772836261241,-420.104859,0.00044657,2]
[407854463,1772836261251,-340.992679,0.00044657,120]
[407854464,1772836261260,-340.992679,0.00044657,120]
[407854465,1772836261269,-151.0,0.00044657,120]
[407854466,1772836261279,-340.992679,0.00044657,120]
[407854467,1772836261289,-151.0,0.00044657,120]
[407854468,1772836261299,-340.992679,0.00044657,120]
[407854469,1772836261308,-151.0,0.00044657,120]
[407854470,1772836261318,-1211.82,0.00044657,120]
[407854471,1772836261328,-225.482149,0.00044657,28]
[407854472,1772836261337,-225.482149,0.00044657,28]
[407854473,1772836261347,-225.482149,0.00044657,28]
[407854474,1772836261356,-225.482149,0.00044657,28]
[407854475,1772836261365,-151.0,0.00044657,120]
[407854476,1772836261374,-151.0,0.00044657,120]
[407854477,1772836261384,-151.0,0.00044657,120]
[407854478,1772836261393,-151.0,0.00044657,120]
[407854479,1772836261403,-163.118199,0.00044657,120]
[407854480,1772836261413,-159.044811,0.00044657,120]
[407854481,1772836261422,-168.903882,0.00044657,120]
[407854482,1772836261432,-161.676846,0.00044657,120]
[407854483,1772836261441,-151.0,0.00044657,120]
[407854484,1772836261450,-151.0,0.00044657,120]
[407854485,1772836261460,-2962.976893,0.00044657,120]
[407854486,1772836261469,-2962.976893,0.00044657,120]
[407854487,1772836261478,-915.96,0.00044657,120]
[407854488,1772836261487,-151.0,0.00044657,120]
[407854489,1772836261496,-2962.976893,0.00044657,120]
[407854490,1772836261506,-215.106906,0.00044657,120]
[407854491,1772836261516,-151.0,0.00044657,30]
[407854492,1772836261525,-685.55,0.00044657,120]
[407854493,1772836261534,-2962.976893,0.00044657,120]
[407854494,1772836261543,-151.0,0.00044657,120]
[407854495,1772836261552,-151.0,0.00044657,120]
[407854496,1772836261562,-286.149024,0.00044657,120]
[407854497,1772836261571,-151.0,0.00044657,120]
[407854498,1772836261580,-151.0,0.00044657,120]
[407854499,1772836261590,-151.0,0.00044657,120]
[407854500,1772836261599,-151.0,0.00044657,120]
[407854501,1772836261608,-151.0,0.00044657,120]
[407854502,1772836261617,-248.206969,0.00044657,120]
[407854503,1772836261627,-151.0,0.00044657,120]
[407854504,1772836261636,-151.0,0.00044657,120]
[407854505,1772836261645,-248.206969,0.00044657,120]
[407854506,1772836261654,-151.0,0.00044657,120]
[407854507,1772836261663,-248.206969,0.00044657,120]
[407854508,1772836261675,-151.0,0.00044657,120]
[407854509,1772836261686,-248.206969,0.00044657,120]
[407854510,1772836261695,-1236.417622,0.00044657,120]
[407854511,1772836261705,-156.21945,0.00044657,120]
[407854512,1772836261715,-1236.417622,0.00044657,120]
[407854513,1772836261726,-156.21945,0.00044657,120]
[407854514,1772836261736,-1236.417622,0.00044657,120]
[407854515,1772836261748,-156.21945,0.00044657,120]
[407854516,1772836261760,-1236.417622,0.00044657,120]
[407854517,1772836261771,-156.21945,0.00044657,120]
[407854518,1772836261780,-687.88,0.00044657,2]
[407854519,1772836261789,-151.0,0.00044657,120]
[407854520,1772836261798,-788.78,0.00044657,2]
[407854521,1772836261809,-151.0,0.00044657,120]
[407854522,1772836261818,-894.69,0.00044657,120]
[407854523,1772836261828,-746.0,0.00044658,120]
[407854524,1772836261837,-151.53,0.00044676,120]
[407854525,1772836261846,-151.51,0.00044676,120]
[407854526,1772836261855,-151.43,0.00044676,120]
[407854527,1772836261865,-52686.7,0.000447,60]
[407854528,1772836261874,-277.980163,0.000447,15]
[407854529,1772836261883,-277.980163,0.000447,15]
[407854530,1772836261892,-277.980163,0.000447,15]
[407854531,1772836261901,-277.980163,0.000447,15]
[407854532,1772836261910,-176.753931,0.000447,120]
[407854533,1772836261919,-176.753931,0.000447,120]
[407854534,1772836261928,-176.753931,0.000447,120]
[407854536,1772836261937,-151.0,0.000447,120]
[407854537,1772836261947,-176.753931,0.000447,120]
[407854538,1772836261955,-151.0,0.000447,120]
[407854539,1772836261964,-151.0,0.000447,120]
[407854540,1772836262023,-151.0,0.000447,7]
[407854541,1772836262032,-151.0,0.000447,7]
[407854542,1772836262042,-151.0,0.000447,7]
[407854543,1772836262051,-151.0,0.000447,7]
[407854544,1772836262059,-268.443465,0.000447,120]
[407854545,1772836262068,-151.0,0.000447,120]
[407854546,1772836262077,-279.245746,0.000447,120]
[407854547,1772836262086,-151.0,0.000447,120]
[407854548,1772836262095,-272.9349,0.000447,120]
[407854549,1772836262105,-279.245746,0.000447,120]
[407854550,1772836262115,-279.245746,0.000447,120]
[407854551,1772836262124,-151.0,0.000447,120]
[407854552,1772836262133,-279.245746,0.000447,120]
[407854553,1772836262142,-151.0,0.000447,120]
[407854554,1772836262151,-151.0,0.000447,120]
[407854555,1772836262160,-254.851559,0.000447,120]
[407854556,1772836262170,-1447.985089,0.000447,120]
[407854557,1772836262179,-1447.985089,0.000447,120]
[407854558,1772836262188,-1447.985089,0.000447,120]
[407854559,1772836262197,-1447.985089,0.000447,120]
[407854560,1772836262206,-160.195127,0.000447,120]
[407854561,1772836262216,-151.0,0.000447,120]
[407854562,1772836262225,-151.0,0.000447,120]
[407854563,1772836262235,-222.139838,0.000447,120]
[407854564,1772836262244,-222.139838,0.000447,120]
[407854565,1772836262254,-222.139838,0.000447,120]
[407854566,1772836262263,-222.139838,0.000447,120]
[407854567,1772836262272,-174.675152,0.000447,120]
[407854568,1772836262282,-174.675152,0.000447,120]
[407854569,1772836262291,-174.675152,0.000447,120]
[407854570,1772836262300,-174.675152,0.000447,120]
[407854571,1772836262310,-418.82,0.00044735,120]
[407854572,1772836262319,-2803.0,0.00044751,16]
[407854573,1772836262328,-2446.81467,0.00044758,30]
[407854574,1772836262338,-825.0,0.00044761,120]
[407854575,1772836262347,-156.4697347,0.00044769,2]
[407854576,1772836262356,-151.53,0.00044776,120]
[407854577,1772836262365,-151.51,0.00044776,120]
[407854578,1772836262374,-151.43,0.00044776,120]
[407854579,1772836262384,-26219.37372748,0.0004478,30]
[407854580,1772836262393,-4810.256,0.00044797,30]
[407854581,1772836262402,-1097.78831007,0.000448,120]
[407854582,1772836262411,-1042.7,0.00044807,120]
[407854583,1772836262420,-500.0,0.00044835,120]
[407854584,1772836262428,-500.0,0.00044835,120]
[407854585,1772836262437,-500.0,0.00044835,2]
[407854586,1772836262446,-500.0,0.00044835,30]
[407854587,1772836262455,-500.0,0.00044835,45]
[407854588,1772836262464,-500.0,0.00044835,120]
[407854589,1772836262473,-846.0,0.00044841,16]
[407854590,1772836262482,-171.46,0.00044849,13]
[407854591,1772836262491,-171.46,0.00044849,13]
[407854592,1772836262500,-171.46,0.00044849,13]
[407854593,1772836262509,-171.48,0.00044849,13]
[407854594,1772836262518,-177.13,0.00044849,13]
[407854595,1772836262527,-177.13,0.00044849,13]
[407854596,1772836262536,-984.512655,0.00044853,2]
[407854597,1772836262545,-151.53,0.00044876,120]
[407854598,1772836262554,-151.51,0.00044876,120]
[407854599,1772836262563,-151.43,0.00044876,120]
[407854600,1772836262571,-150.0,0.00044877,14]
[407854601,1772836262581,-150.0,0.00044877,14]
[407854602,1772836262590,-199.9553466,0.00044877,14]
[407854603,1772836262599,-602.19868101,0.0004489,120]
[407854604,1772836262608,-11003.86822275,0.000449,7]
[407854605,1772836262617,-414.04190976,0.000449,30]
[407854606,1772836262626,-2455.963,0.000449,90]
[407854607,1772836262635,-2455.963,0.000449,90]
[407854608,1772836262644,-2455.96,0.000449,90]
[407854609,1772836262654,-48475.44391389,0.000449,30]
[407854610,1772836262761,-412.38046332,0.00013171,2]